Cogmind - Beta 16.1 @@@ ROGUE MODE // 2026.04.24 @ 16:39:16 Player: Bereft Result: Destroyed by 7V-03J(R) with Subdweller Machine Gun Performance ------------- Evolutions (0) 0 Regions Visited (2) 400 Robots Destroyed (11) 55 Value Destroyed (203) 203 Prototype IDs (0) 0 Alien Tech Used (0) 0 Bonus (0) 0 TOTAL SCORE: 658 Bonus ------- None Cogmind --------- Core Integrity 0/250 Matter 298/300 Energy 100/100 System Corruption 3% Temperature Cool (0) Movement Core (50) Location -10/Subcaves Parts ------- > --- POWER (1) -------- (None) > --- PROPULSION (2) --- (None) > --- UTILITY (2) ------ (None) > --- WEAPON (2) ------- (None) > --- INVENTORY (5) ---- Improved Terrain Scanner Seismic Detector Weapon Shielding Tractor Beam Peak State ------------ > --- POWER ------------ Ion Engine > --- PROPULSION ------- Light Treads Light Treads > --- UTILITY ---------- Small Storage Unit Seismic Detector > --- WEAPON ----------- EM Pulse Gun Small Laser > --- INVENTORY -------- Improved Terrain Scanner Tractor Beam Mining Laser [Rating: 7] Favorites ----------- Power Ion Engine Engine Ion Engine Propulsion Light Treads Treads Light Treads Utility Sensor Array Device Sensor Array Storage Small Storage Unit Weapon Small Laser Energy Gun Small Laser Special Weapon Mining Laser Build | -11 -10 -10 ------- Run | Yrd Mat Sub Slots Evolved . | . . . Power . | . . . Propulsion . | . . . Utility . | . . . Weapon . | . . . Parts Attached 13 | 6 7 . Power 2 | 1 1 . Engine 2 | 1 1 . Core . | . . . Reactor . | . . . Propulsion 2 | 2 . . Treads 2 | 2 . . Leg . | . . . Wheel . | . . . Hover . | . . . Flight . | . . . Utility 6 | 1 5 . Device 3 | . 3 . Storage 3 | 1 2 . Processor . | . . . Hackware . | . . . Protection . | . . . Artifact . | . . . Weapon 3 | 2 1 . Energy Gun 2 | 2 . . Energy Cannon . | . . . Ballistic Gun . | . . . Ballistic Cannon . | . . . Launcher . | . . . Special Weapon 1 | . 1 . Impact Weapon . | . . . Slashing Weapon . | . . . Piercing Weapon . | . . . Special Melee Weapon . | . . . Unidentified Prototypes . | . . . Parts Lost 5 | . 1 4 Power 1 | . . 1 Propulsion 1 | . . 1 Utility . | . . . Weapon 3 | . 1 2 Highest Loss Streak 4 | . 1 4 To Critical Strikes . | . . . Average Backups 3 | . 4 4 Power . | . . . Propulsion . | . . . Utility 3 | . 3 4 Weapon . | . . . Tool/Special . | . . . Unused Backups 4 | . 1 3 Power . | . . . Propulsion . | . . . Utility 4 | . 1 3 Weapon . | . . . Tool/Special . | . . . Average Slot Usage (%) 97 | . 98 91 Engine 13 | . 14 11 Treads 27 | . 28 25 Device 25 | . 26 14 Storage 2 | . 1 14 Energy Gun 20 | . 21 12 Special Weapon 6 | . 5 11 Peak Build Rating 7 | 6 7 7 Average Rating 6 | 5 6 6 On Entrance 4 | . 6 7 Avg Prop Armor Cover (%) . | . . . Naked Turns 1 | . . 1 Heaviest Build 27 | 13 27 27 Greatest Support 40 | 40 40 40 Greatest Overweight (x) 1 | . . 1 Average Overweight (x) . | . . . Largest Inventory Capacity 15 | 8 15 15 Average Capacity 6 | 7 5 14 Most Carried 6 | 4 6 4 Average Carried 3 | . 4 4 Final Capacity 15 | 8 15 5 Final Carried 4 | 4 4 4 Class Distribution -------------------- 100% | Mutant Dominant Class ---------------- Mutant | -10/Materials Mutant | -10/Subcaves Resources | -11 -10 -10 ----------- Run | Yrd Mat Sub Matter Collected 341 | 260 67 14 Remotely . | . . . Salvage Created 319 | 116 203 . Parts 26 | 9 17 . Haulers Intercepted . | . . . Recyclers Shooed . | . . . Parts Field Recycled . | . . . Retrieved Matter . | . . . Parts Self-Destructed 10 | . . 10 Prevented . | . . . Parts Restored . | . . . Kills | -11 -10 -10 ------- Run | Yrd Mat Sub Combat Hostiles Destroyed 6 | . 6 . Guns 3 | . 3 . AOE 3 | . 3 . Classes Destroyed 5 | 2 3 . Worker 1 | . 1 . Tunneler 3 | 2 1 . Recycler 1 | 1 . . Swarmer 3 | . 3 . Grunt 3 | . 3 . Best Kill Streak 4 | 3 4 . Combat Bots Only 4 | . 4 . Max Kills in Single Turn 4 | 1 4 . Gunslinging . | . . . Exploded 2 | . 2 . Melee . | . . . Uniques/NPCs Destroyed . | . . . Combat | -11 -10 -10 -------- Run | Yrd Mat Sub Hostile Shots Fired 75 | . 40 35 Missed 16 | . 6 10 Hits 59 | . 34 25 Projectile 59 | . 34 25 Critical Strikes 2 | . . 2 Damage Taken 907 | . 361 546 Core 266 | . 49 217 Absorbed by Shields . | . . . Regen/Repaired (Parts) 44 | . 44 . Core Remaining (%) 100 | 100 . . Volleys Fired 44 | 8 27 9 Largest 2 | 2 2 2 Hottest 140 | 80 100 140 Shots Fired 60 | 16 34 10 Gun 41 | 16 16 9 Cannon . | . . . Launcher . | . . . Special 19 | . 18 1 Kinetic . | . . . Thermal 34 | 8 25 1 Explosive . | . . . Electromagnetic 26 | 8 9 9 Robot Hit Streak 5 | 3 4 5 Robot Miss Streak 3 | 3 2 1 Penetration Max . | . . . Secondary Targets . | . . . Shots Hit Robots 25 | 8 10 7 Core Hits 14 | 4 8 2 Critical Kills . | . . . Critical Parts Destroyed . | . . . Critical Strikes . | . . . Melee Attacks . | . . . Impact . | . . . Slashing . | . . . Piercing . | . . . Sneak Attacks . | . . . Combat Hostiles . | . . . Follow-up Attacks . | . . . Damage Inflicted 533 | 110 337 86 Guns 287 | 110 99 78 Cannons . | . . . Explosions 238 | . 238 . Melee . | . . . Ramming 8 | . . 8 Kinetic . | . . . Thermal 335 | 44 291 . Explosive . | . . . Electromagnetic 190 | 66 46 78 Impact . | . . . Slashing . | . . . Piercing . | . . . Highest Corruption 3 | . 3 3 Average Corruption 2 | . 2 3 Corruption Purged . | . . . Corruption Blocked . | . . . Effects 13 | . 7 6 Message Errors 3 | . 2 1 Matter Fused 1 | . . 1 Heat Flow Errors 2 | . 1 1 Energy Discharges 4 | . 2 2 Data Loss (minor) 3 | . 2 1 Overload Shots . | . . . Overflow Damage . | . . . Projectiles . | . . . Explosions . | . . . Melee . | . . . Knockbacks . | . . . Impact . | . . . Kinetic . | . . . Secondary . | . . . Self-Inflicted Damage 53 | . 53 . Shots 2 | . 2 . Rammed 6 | . . 6 Targets Rammed 6 | . . 6 Kicked . | . . . Crushed . | . . . Highest Temperature 217 | 54 217 217 Average Temperature 58 | 27 62 119 Received Heat Transfer 96 | . 12 84 Siege Activations . | . . . Martial Activations . | . . . Shielding Activations . | . . . Robots Disrupted . | . . . Combat Hostiles . | . . . Robots Corrupted . | . . . Combat Hostiles . | . . . Parts Fried . | . . . Impact Corruptions . | . . . Robots Melted . | . . . Combat Hostiles . | . . . Parts Melted . | . . . Heat Transferred 325 | 100 225 . Parts Sabotaged . | . . . Parts Stolen . | . . . Parts Stripped . | . . . Power Chain Reactions 2 | . 2 . Alert | -11 -10 -10 ------- Run | Yrd Mat Sub Maximum Alert Level . | . . . Low Security (%) 100 | 100 100 . Level 1 . | . . . Level 2 . | . . . Level 3 . | . . . Level 4 . | . . . Level 5 . | . . . High Security . | . . . Max Security . | . . . Peak Influence 95 | 5 95 . Initial . | . . . Average 14 | 1 14 . Influence Increases 242 | 15 227 . Destroy 0b10 Robot/C 120 | . 120 . Destroy 0b10 Robot/NC 25 | 15 10 . Destroy Leader 30 | . 30 . Successful Hack 11 | . 11 . Disable Machine 45 | . 45 . Destroy Structure 11 | . 11 . Influence Decreases 242 | 15 182 45 Entered New Map 22 | . . 22 Time Decay 220 | 15 182 23 Squads Dispatched 1 | . 1 . Investigation . | . . . Extermination . | . . . Reinforcement 1 | . 1 . Assault . | . . . Garrison . | . . . Intercept . | . . . Searches Triggered . | . . . Construction Impeded . | . . . Haulers Reinforced . | . . . Active Scanning Responses . | . . . Cargo Convoy Interrupts . | . . . Stealth | -11 -10 -10 --------- Run | Yrd Mat Sub Distress Signals 1 | . 1 . Communications Jammed . | . . . Distress Signals . | . . . Times Spotted 9 | . 7 2 Peak Tracking Total 6 | . 6 2 Tactical Retreats . | . . . Traps | -11 -10 -10 ------- Run | Yrd Mat Sub Traps Triggered 3 | . 3 . Indirectly . | . . . Trap Hack Attempts . | . . . Triggered . | . . . Disarmed . | . . . Reprogrammed . | . . . Reused . | . . . Traps Extracted . | . . . Installed . | . . . Triggered . | . . . Machines | -11 -10 -10 ---------- Run | Yrd Mat Sub Machines Disabled 3 | . 3 . Max in Single Turn 1 | . 1 . Machines Repaired . | . . . Machines Dismantled . | . . . Machines Sabotaged . | . . . Overloaded Fab Kills . | . . . Hacking | -11 -10 -10 --------- Run | Yrd Mat Sub Machines Accessed 6 | . 6 . Terminals 4 | . 4 . Fabricators . | . . . Repair Stations 1 | . 1 . Recycling Units 1 | . 1 . Scanalyzers . | . . . Garrison Access . | . . . Total Hacks 17 | . 17 . Successful 9 | . 9 . Failed 8 | . 8 . Catastrophic . | . . . Database Lockouts . | . . . Manual 6 | . 6 . Terminals 9 | . 9 . Fabricators . | . . . Repair Stations 4 | . 4 . Recycling Units 4 | . 4 . Scanalyzers . | . . . Garrison Access . | . . . Terminal Hacks 2 | . 2 . Hauler Manifests 1 | . 1 . Registered Components 1 | . 1 . Fabricator Hacks . | . . . Repair Station Hacks 2 | . 2 . Scan Component 1 | . 1 . Repair 1 | . 1 . Recycling Unit Hacks . | . . . Scanalyzer . | . . . Garrison Access Hacks . | . . . Unauthorized Hacks 5 | . 5 . Terminals 3 | . 3 . Track 1 | . 1 . Assimilate 2 | . 2 . Fabricators . | . . . Repair Stations . | . . . Recycling Units 2 | . 2 . Reject 1 | . 1 . Recyclers 1 | . 1 . Scanalyzers . | . . . Garrison Access . | . . . Data Cores Recovered . | . . . Used . | . . . Hacking Detections 5 | . 5 . Full Trace Events 1 | . 1 . Feedback Events . | . . . Feedback Blocked . | . . . Robot Schematics Acquired . | . . . Robots Built . | . . . Authchips . | . . . Time . | . . . Total Robot Build Rating . | . . . Part Schematics Acquired . | . . . Parts Built . | . . . Authchips . | . . . Time . | . . . Total Part Build Rating . | . . . Part Studies Acquired . | . . . Parts Repaired 1 | . 1 . Time 26 | . 26 . Parts Recycled . | . . . Recycled Matter . | . . . Retrieved Matter . | . . . Retrieved Components . | . . . Parts Scanalyzed . | . . . Part Schematics Acquired . | . . . Parts Damaged . | . . . Bothacking | -11 -10 -10 ------------ Run | Yrd Mat Sub Used RIF Installer . | . . . Robots Hacked . | . . . Non-combat . | . . . Combat . | . . . Robot Hacks Applied . | . . . Relay Couplers Released . | . . . Fabnet Peak Effective % . | . . . Robots Rewired . | . . . Allies Hacked . | . . . Hacks Repelled . | . . . Allies | -11 -10 -10 -------- Run | Yrd Mat Sub Total Allies . | . . . Largest Group . | . . . Highest-Rated Group . | . . . Highest-Rated Ally . | . . . Total Orders . | . . . Ally Attacks . | . . . Total Damage . | . . . Kills . | . . . Allies Corrupted . | . . . Allies Melted . | . . . Intel | -11 -10 -10 ------- Run | Yrd Mat Sub Active Infowar (turns) 2095 | . 1899 196 Sensors 2034 | . 1838 196 Seismic 1800 | . 1800 . Robot Analysis Total . | . . . Derelict Logs Recovered . | . . . Drone Launches . | . . . Drone Recoveries . | . . . Exploration | -11 -10 -10 ------------- Run | Yrd Mat Sub Turns Passed 2226 | 130 1899 197 Spaces Moved 511 | 61 352 98 Core 5 | 3 . 2 Treads 506 | 58 352 96 Legs . | . . . Wheels . | . . . Hover . | . . . Flight . | . . . Fastest Speed 50 | 50 160 50 Average Speed 159 | 154 160 161 Slowest Speed 240 | 160 160 240 Overloaded Moves . | . . . Propulsion Burnouts . | . . . Robots Hopped . | . . . Potential Cave-ins . | . . . Cave-ins Triggered . | . . . Exploration Rate (%) 18 | 5 39 11 Regions Visited 2 Branch Regions 1 Pre-discovered Areas 1 | . . 1 Known Exits Taken . | . . . Unknown Exits Taken 2 | 1 1 . Scrap Searched . | . . . Spaces Dug 2 | . 2 . Terrain Destroyed 9 | . 9 . Melee . | . . . Projectile 2 | . 2 . AOE 7 | . 7 . Terrain Rammed . | . . . Walls Destroyed . | . . . Machines Disabled . | . . . Actions | -11 -10 -10 --------- Run | Yrd Mat Sub Total 1811 | 78 1617 116 Wait 1220 | . 1217 3 Move 509 | 60 351 98 Hop . | . . . Pick Up 7 | 4 3 . Fast Attach 10 | 6 4 . Attach 2 | . 2 . Detach 1 | . 1 . Swap 6 | . 6 . Drop 6 | . 6 . Fire 44 | 8 27 9 Melee . | . . . Ram . | . . . Kick . | . . . Crush 6 | . . 6 Escape Stasis . | . . . Rewire . | . . . Trap . | . . . Miscellaneous . | . . . Route ------- -11/Scrapyard -10/Materials (discovered 2 exits: [*Mat] / [*Sub]) -10/Subcaves History --------- Turn | Location | Event 31 | -11/Scrapyard | Discovered new exit (range 15) 131 | -11/Scrapyard | Entered Materials 309 | -10/Materials | Build established: Mutant 1848 | -10/Materials | Repaired EM Pulse Gun 1986 | -10/Materials | Discovered new exit (range 11) 2017 | -10/Materials | Discovered new exit (range 9) 2030 | -10/Materials | Entered Subcaves 2031 | -10/Subcaves | Approached by a straggling Scientist 2056 | -10/Subcaves | Learned location of Zion (-7) 2056 | -10/Subcaves | Met a Zionite searching for "candidates" 2205 | -10/Subcaves | Core integrity fell below 50% 2215 | -10/Subcaves | Core integrity fell below 20% 2226 | -10/Subcaves | Released all parts (3) 2227 | -10/Subcaves | Destroyed by 7V-03J(R) with Subdweller Machine Gun Last Messages --------------- System corrupted: Heat flow error (+255). 2N-OH4(c) destroyed. System corrupted: Matter fused (-5). Mining Laser destroyed. Lgt. Treads destroyed. Lgt. Ion Engine destroyed. EM Pulse Gun destroyed. 7V-03J(R) misfires. Slammed into 7V-03J(R). 7V-03J(R) misfires. Slammed into 7V-03J(R). 7V-03J(R) misfires. Slammed into 7V-03J(R). 7V-03J(R) IFF system glitched. Slammed into 7V-03J(R). 7V-03J(R) misfires. Z#ZNOG9>VA1ZSB Z2HMGSKH I Released Sensor Array. Released Lgt. Treads. Released Lrg. Storage Unit. Map ----- +----------------------------------------------------+ | ?????????????????????????????????????????????????? | | ????????????????????????????????????????????###??? | | ???????????????????????????????????????????## #??? | | ???????????????????????????????????????????# #??? | | ???????????????????????????????????????????# #??# | | ??????????????????????????????????????###### #### | | ?????????????????????????????????????## # # | | ?????????????????????????????????????# | | ?????????????????????????????????????## | | ??????????????????????????????????????# # | | ??????????????????????????????????????# #### | | ??????????????????????????????????????# ##??? | | ?????????????????????????????????????## #???? | | ????????????????????????????????????## ###?? | | ????????????????????????????????????# ### | | ????????????????????????????????????# # | | ????????????????????????????????????## ## | | ?????????????????????????????????????## #### | | ??????????????????????????????????????## #??# | | ????????????????#??????????????????????## #??# | | ????????????????# ??????????????????????## #?# | | ???????????????## ????????????????????## ## | | ?????????????### ###????????????????# | | ?????????????# ""########?????#### | | ???????????# ####### | | ?????????? @ # ## = | | ?????????? # ###!!=R =%! | | ????????????????????????# "" R" * | | ???????????????????????# """" # ##### | | ???????????????????????## """"" # ######????### | | ????????????????????????##""""" ## ##???????????? | | ?????????????????????????##"""" """""#???????????? | | ??????????????????????????#### """"##???????????? | | ?????????????????????????????## "####????????????? | | ??????????????????????????????# ##???????????????? | | ??????????????????????????????###????????????????? | | ?????????????????????????????????????????????????? | | ?????????????????????????????????????????????????? | | ?????????????????????????????????????????????????? | | ?????????????????????????????????????????????????? | | ?????????????????????????????????????????????????? | | ?????????????????????????????????????????????????? | | ?????????????????????????????????????????????????? | | ?????????????????????????????????????????????????? | | ?????????????????????????????????????????????????? | | ?????????????????????????????????????????????????? | | ?????????????????????????????????????????????????? | | ?????????????????????????????????????????????????? | | ?????????????????????????????????????????????????? | | ?????????????????????????????????????????????????? | +----------------------------------------------------+ Best States ------------- Heat Dissipation 25 Energy Generation 10 Energy Capacity 250 Matter Stores 300 Matter Capacity 300 Sight Range 16 Robot Scan Range 14 Terrain Scan Density 10 Evasion (%) 40 Recoil Reduction 2 Item Schematics ----------------- None Robot Schematics ------------------ None Fabricated ------------ Nothing Repaired ---------- EM Pulse Gun | 2% | -10/Materials Studied --------- None Alien Tech Used ----------------- None Achievements -------------- None Challenges ------------ None Game ------ Seed GuidanceMeleeNeutralizer Manual? 0 Play Time 00:12:16 Cumulative 26.5 hours Start 2026.04.24 @ 16:27:35 End 2026.04.24 @ 16:39:16 Sessions 1 Manual Loads 0 Difficulty Rogue Special Mode None Game No. 46 Rogue 46 Adventurer 0 Explorer 0 Win Type - Total 0 Types 0/0/0/0/0/0/0/0/0/0 Lore% 22 Gallery% 23 Achievement% 21 Wizard Run 0 Options --------- Layout 1 ASCII 0 Keyboard 0 Movement Mouse Keybinds 0 Fullscreen 1 Font 32/SmallcapsGlow Map View 50x35 Zoom Use 0% Tactical HUD 0 Map Filters NONE Filters NONE Steam 1 RUN: 54c606aa-7fb6-4cbc-aebc-868a2fa3bcd6